fUST/lending_fUST_20241107
["ID","MTS","AMOUNT","RATE_DAILY","PERIOD"]
[341511264,1730938240235,-500.0,0.00027671,2]
[341511265,1730938240244,-500.0,0.00027671,2]
[341511266,1730938240254,-546.16,0.00027671,2]
[341511267,1730938240263,-500.0,0.00027671,2]
[341511268,1730938240274,-148.28437596,0.00027671,2]
[341511285,1730938240500,-351.71562404,0.00027671,2]
[341511287,1730938240512,-598.33,0.00027671,2]
[341511289,1730938240523,-500.0,0.00027671,2]
[341511291,1730938240533,-500.0,0.00027671,2]
[341511292,1730938240547,-500.0,0.00027671,2]
[341511293,1730938240556,-500.0,0.00027671,2]
[341511294,1730938240565,-953.29,0.00027671,2]
[341511296,1730938240574,-500.0,0.00027671,2]
[341511298,1730938240583,-500.0,0.00027671,2]
[341511300,1730938240593,-500.0,0.00027671,2]
[341511301,1730938240602,-617.71,0.00027671,2]
[341511303,1730938240613,-500.0,0.00027671,2]
[341511305,1730938240623,-547.2,0.00027671,2]
[341511307,1730938240634,-500.0,0.00027671,2]
[341511308,1730938240644,-500.0,0.00027671,2]
[341511309,1730938240653,-771.12,0.00027671,2]
[341511310,1730938240662,-500.0,0.00027671,2]
[341511311,1730938240673,-3045.01,0.00027671,2]
[341511312,1730938240683,-500.0,0.00027671,2]
[341511313,1730938240692,-3740.7,0.00027671,2]
[341511314,1730938240703,-500.0,0.00027671,2]
[341511315,1730938240712,-1314.49,0.00027671,2]
[341511317,1730938240722,-500.0,0.00027671,2]
[341511318,1730938240731,-32.06493491,0.00027671,2]
[341511344,1730938243479,-600.23132033,0.00023957,2]
[341511414,1730938403921,164.333889,0.00013973,2]
[341511420,1730938490878,1169.27083333,0.0002083,2]
[341511421,1730938732737,1000.0,0.00032654,30]
[341511428,1730938895551,160.698175,0.00013973,2]
[341511431,1730939103350,1169.27083333,0.0002083,2]
[341511457,1730939304139,14120.9820251,0.0002,2]
[341511459,1730939325966,3345.13270911,0.00020377,2]
[341511460,1730939326377,4336.97612614,0.0002,2]
[341511461,1730939327879,294533.0,0.0001999,2]
[341511462,1730939328018,350.54713234,0.0002,2]
[341511562,1730939432547,-161.38022043,0.000209,2]
[341511564,1730939432557,-261.10720852,0.00021,2]
[341511566,1730939432568,-235.3092645,0.00021,2]
[341511577,1730939432579,-205.7816754,0.00024446,2]
[341511578,1730939432690,-300.0,0.00024999,2]
[341511581,1730939432701,-300.0,0.00024999,2]
[341511582,1730939432710,-281.89018047,0.00025,2]
[341511584,1730939432720,-4652.02024364,0.00025,2]
[341511586,1730939432732,-380.33045,0.00025,2]
[341511728,1730939438834,-14171.12081654,0.00025,2]
[341511729,1730939438946,-19038.90342308,0.00025,2]
[341511730,1730939438955,-1169.27083333,0.00025,2]
[341511731,1730939438964,-8164.7439167,0.00025725,2]
[341511732,1730939438973,-2609.8828871,0.00026025,2]
[341511733,1730939438982,-153.0,0.00026688,2]
[341511734,1730939438992,-153.0,0.00026688,2]
[341511735,1730939439002,-153.0,0.00026688,2]
[341511736,1730939439011,-153.0,0.00026688,2]
[341511737,1730939439020,-153.0,0.00026688,2]
[341511738,1730939439037,-153.0,0.00026688,2]
[341511739,1730939439048,-153.0,0.00026688,2]
[341511740,1730939439057,-401.895447,0.00026962,2]
[341511742,1730939439067,-303.4019452,0.00026962,2]
[341511743,1730939439077,-303.4019452,0.00026962,2]
[341511744,1730939439086,-303.4019452,0.00026962,2]
[341511745,1730939439095,-303.4019452,0.00026962,2]
[341511746,1730939439105,-303.4019452,0.00026962,2]
[341511747,1730939439114,-303.4019452,0.00026962,2]
[341511748,1730939439123,-303.4019452,0.00026962,2]
[341511749,1730939439132,-303.4019452,0.00026962,2]
[341511751,1730939439142,-303.4019452,0.00026962,2]
[341511752,1730939439152,-420.0,0.00027082,2]
[341511753,1730939439161,-500.0,0.00027373,2]
[341511754,1730939439170,-500.0,0.00027373,2]
[341511755,1730939439181,-500.0,0.00027373,2]
[341511756,1730939439192,-500.0,0.00027373,2]
[341511757,1730939439203,-428.89,0.00027387,10]
[341511758,1730939439212,-357.41,0.00027387,10]
[341511759,1730939439221,-164.91229662,0.00027396,2]
[341511760,1730939439231,-500.0,0.00027397,2]
[341511761,1730939439240,-600.44291715,0.00027397,2]
[341511762,1730939439249,-511.73860284,0.00027397,2]
[341511763,1730939439259,-500.0,0.00027397,2]
[341511764,1730939439267,-574.14378843,0.00027397,2]
[341511765,1730939439277,-505.49044665,0.00027397,2]
[341511766,1730939439289,-500.0,0.00027397,2]
[341511767,1730939439299,-541.06,0.00027397,2]
[341511768,1730939439308,-508.76318269,0.00027397,2]
[341511769,1730939439317,-504.88495705,0.00027397,2]
[341511770,1730939439326,-500.0,0.00027397,2]
[341511771,1730939439335,-500.0,0.00027397,2]
[341511772,1730939439345,-504.54248169,0.00027397,2]
[341511773,1730939439354,-500.0,0.00027397,2]
[341511774,1730939439363,-507.96681606,0.00027397,2]
[341511775,1730939439372,-500.0,0.00027397,2]
[341511776,1730939439382,-500.0,0.00027397,2]
[341511777,1730939439391,-500.0,0.00027397,2]
[341511778,1730939439401,-500.0,0.00027397,2]
[341511779,1730939439410,-500.0,0.00027397,2]
[341511780,1730939439419,-503.1881658,0.00027397,2]
[341511781,1730939439430,-500.0,0.00027397,2]
[341511782,1730939439439,-500.0,0.00027397,2]
[341511783,1730939439448,-500.0,0.00027397,2]
[341511784,1730939439458,-500.0,0.00027397,2]
[341511785,1730939439467,-500.0,0.00027397,2]
[341511786,1730939439477,-500.0,0.00027397,2]
[341511787,1730939439486,-500.0,0.00027397,2]
[341511788,1730939439495,-607.78496525,0.00027397,2]
[341511789,1730939439504,-505.44015052,0.00027397,2]
[341511790,1730939439514,-500.0,0.00027397,2]
[341511791,1730939439523,-500.0,0.00027397,2]
[341511792,1730939439533,-500.0,0.00027397,2]
[341511793,1730939439542,-500.0,0.00027397,2]
[341511794,1730939439551,-500.0,0.00027397,2]
[341511795,1730939439562,-325.4080018,0.00027397,2]
[341511796,1730939439571,-500.0,0.00027397,2]
[341511797,1730939439580,-177.78560126,0.00027397,2]
[341511798,1730939439590,-500.0,0.00027397,2]
[341511799,1730939439599,-345.256713,0.00027397,2]
[341511800,1730939439609,-500.0,0.00027397,2]
[341511801,1730939439618,-500.0,0.00027397,2]
[341511802,1730939439627,-500.0,0.00027397,2]
[341511803,1730939439638,-500.0,0.00027397,2]
[341511804,1730939439648,-345.8952898,0.00027397,2]
[341511805,1730939439657,-451.10229854,0.00027397,2]
[341511806,1730939439670,-500.0,0.00027397,2]
[341511807,1730939439681,-500.0,0.00027397,2]
[341511808,1730939439690,-500.0,0.00027397,2]
[341511809,1730939439699,-500.0,0.00027397,2]
[341511810,1730939439709,-156.63237086,0.00027397,2]
[341511811,1730939439718,-500.0,0.00027397,2]
[341511812,1730939439728,-200.0,0.00027397,2]
[341511813,1730939439737,-297.34652671,0.00027397,2]
[341511814,1730939439746,-500.0,0.00027397,2]
[341511815,1730939439756,-500.0,0.00027397,2]
[341511816,1730939439766,-500.0,0.00027397,2]
[341511817,1730939439775,-500.0,0.00027397,2]
[341511818,1730939439786,-500.0,0.00027397,2]
[341511819,1730939439797,-500.0,0.00027397,2]
[341511820,1730939439807,-500.0,0.00027397,2]
[341511821,1730939439816,-500.0,0.00027397,2]
[341511822,1730939439826,-500.0,0.00027397,2]
[341511823,1730939439835,-500.0,0.00027397,2]
[341511824,1730939439844,-2812.1,0.00027397,2]
[341511825,1730939439854,-500.0,0.00027397,2]
[341511826,1730939439864,-870.34049433,0.00027397,2]
[341511827,1730939439873,-500.0,0.00027397,2]
[341511828,1730939439883,-1204.95,0.00027397,2]
[341511829,1730939439893,-500.0,0.00027397,2]
[341511830,1730939439902,-3486.07,0.00027397,2]
[341511831,1730939439912,-873.85,0.00027397,2]
[341511832,1730939439921,-500.0,0.00027397,2]
[341511833,1730939439935,-500.0,0.00027397,2]
[341511834,1730939439945,-548.47,0.00027397,2]
[341511835,1730939439954,-500.0,0.00027397,2]
[341511836,1730939439964,-500.0,0.00027397,2]
[341511837,1730939439973,-500.0,0.00027397,2]
[341511838,1730939439982,-496.75803173,0.00027397,2]
[341511839,1730939439992,-641.04674705,0.00027397,2]
[341511840,1730939440003,-671.66,0.00027397,2]
[341511841,1730939440015,-500.0,0.00027397,2]
[341511842,1730939440025,-561.36810207,0.00027397,2]
[341511843,1730939440035,-500.0,0.00027397,2]
[341511844,1730939440044,-7062.9,0.00027397,2]
[341511845,1730939440053,-500.0,0.00027397,2]
[341511846,1730939440063,-500.0,0.00027397,2]
[341511847,1730939440191,-1352.34,0.00027397,2]
[341511848,1730939440201,-501.6,0.00027397,2]
[341511849,1730939440210,-1336.01,0.00027397,2]
[341511851,1730939440220,-500.0,0.00027397,2]
[341511853,1730939440229,-500.0,0.00027397,2]
[341511854,1730939440239,-500.0,0.00027397,2]
[341511855,1730939440248,-706.86,0.00027397,2]
[341511856,1730939440258,-500.0,0.00027397,2]
[341511857,1730939440269,-500.0,0.00027397,2]
[341511858,1730939440278,-500.0,0.00027397,2]
[341511859,1730939440288,-500.0,0.00027397,2]
[341511860,1730939440298,-500.0,0.00027397,2]
[341511861,1730939440307,-500.0,0.00027397,2]
[341511862,1730939440317,-502.03105519,0.00027397,2]
[341511863,1730939440327,-540.23,0.00027397,2]
[341511864,1730939440335,-500.0,0.00027397,2]
[341511865,1730939440345,-500.0,0.00027397,2]
[341511866,1730939440355,-500.0,0.00027397,2]
[341511867,1730939440366,-500.0,0.00027397,2]
[341511868,1730939440377,-508.90782137,0.00027397,2]
[341511869,1730939440387,-500.0,0.00027397,2]
[341511870,1730939440398,-500.0,0.00027397,2]
[341511871,1730939440409,-552.99,0.00027397,2]
[341511872,1730939440423,-500.0,0.00027397,2]
[341511873,1730939440438,-500.0,0.00027397,2]
[341511874,1730939440449,-500.0,0.00027397,2]
[341511875,1730939440459,-500.0,0.00027397,2]
[341511876,1730939440468,-500.0,0.00027397,2]
[341511878,1730939440477,-200.0,0.00027397,2]
[341511880,1730939440487,-500.0,0.00027397,2]
[341511881,1730939440496,-500.0,0.00027397,2]
[341511882,1730939440506,-500.0,0.00027397,2]
[341511883,1730939440515,-500.0,0.00027397,2]
[341511884,1730939440524,-500.0,0.00027397,2]
[341511885,1730939440533,-676.2,0.00027397,2]
[341511886,1730939440543,-503.58720575,0.00027397,2]
[341511887,1730939440553,-501.3,0.00027397,2]
[341511888,1730939440562,-507.71130015,0.00027397,2]
[341511889,1730939440572,-500.0,0.00027397,2]
[341511890,1730939440582,-500.0,0.00027397,2]
[341511891,1730939440592,-500.0,0.00027397,2]
[341511892,1730939440603,-500.0,0.00027397,2]
[341511893,1730939440615,-500.0,0.00027397,2]
[341511894,1730939440626,-500.0,0.00027397,2]
[341511895,1730939440636,-503.71855784,0.00027397,2]
[341511896,1730939440645,-500.65,0.00027397,2]
[341511897,1730939440656,-501.31402908,0.00027397,2]
[341511898,1730939440666,-500.0,0.00027397,2]
[341511899,1730939440675,-392.37,0.00027397,2]
[341511900,1730939440687,-500.0,0.00027397,2]
[341511901,1730939440696,-516.20709497,0.00027397,2]
[341511902,1730939440706,-500.0,0.00027397,2]
[341511903,1730939440715,-566.23,0.00027397,2]
[341511904,1730939440725,-500.0,0.00027397,2]
[341511905,1730939440735,-325.03500419,0.00027397,2]
[341511906,1730939440744,-500.0,0.00027397,2]
[341511907,1730939440754,-1028.03,0.000274,2]
[341511908,1730939440764,-420.0,0.00027499,2]
[341511909,1730939440774,-264.88370392,0.00027571,2]
[341511910,1730939440783,-1033.61,0.000276,2]
[341511911,1730939440795,-153.0,0.00027647,30]
[341511912,1730939440804,-153.0,0.00027647,30]
[341511913,1730939440814,-153.0,0.00027647,30]
[341511914,1730939440823,-153.0,0.00027647,30]
[341511915,1730939440833,-153.0,0.00027647,30]
[341511916,1730939440843,-153.0,0.00027647,30]
[341511917,1730939440852,-153.0,0.00027647,30]
[341511918,1730939440861,-153.0,0.00027647,30]
[341511919,1730939440870,-153.0,0.00027647,30]
[341511920,1730939440879,-153.0,0.00027647,30]
[341511921,1730939440888,-153.0,0.00027647,30]
[341511922,1730939440897,-153.0,0.00027647,30]
[341511923,1730939440906,-500.0,0.00027671,2]
[341511924,1730939440915,-531.33566206,0.00027671,2]
[341511925,1730939440925,-504.89929136,0.00027671,2]
[341511926,1730939440936,-500.0,0.00027671,2]
[341511927,1730939440945,-500.0,0.00027671,2]
[341511928,1730939440954,-540.45,0.00027671,2]
[341511929,1730939440964,-500.0,0.00027671,2]
[341511930,1730939440973,-195.12803655,0.00027671,2]
[341511931,1730939440982,-500.0,0.00027671,2]
[341511932,1730939441001,-500.0,0.00027671,2]
[341511933,1730939441013,-500.0,0.00027671,2]
[341511934,1730939441023,-500.0,0.00027671,2]
[341511935,1730939441033,-500.0,0.00027671,2]
[341511936,1730939441045,-500.0,0.00027671,2]
[341511937,1730939441055,-500.0,0.00027671,2]
[341511938,1730939441065,-500.0,0.00027671,2]
[341511939,1730939441076,-434.15942588,0.00027671,2]
[341511940,1730939441086,-500.0,0.00027671,2]
[341511941,1730939441096,-500.0,0.00027671,2]
[341511942,1730939441106,-500.0,0.00027671,2]
[341511943,1730939441116,-500.0,0.00027671,2]
[341511944,1730939441126,-500.0,0.00027671,2]
[341511945,1730939441135,-500.0,0.00027671,2]
[341511946,1730939441146,-2812.1,0.00027671,2]
[341511947,1730939441156,-500.0,0.00027671,2]
[341511948,1730939441179,-500.0,0.00027671,2]
[341511949,1730939441191,-1204.95,0.00027671,2]
[341511950,1730939441202,-642.64087265,0.00027671,2]
[341511951,1730939441212,-3486.07,0.00027671,2]
[341511952,1730939441221,-873.85,0.00027671,2]
[341511953,1730939441230,-500.0,0.00027671,2]
[341511954,1730939441240,-396.45337309,0.00027671,2]
[341511955,1730939441250,-548.47,0.00027671,2]
[341511956,1730939441260,-500.0,0.00027671,2]
[341511957,1730939441269,-671.66,0.00027671,2]
[341511958,1730939441278,-500.0,0.00027671,2]
[341511959,1730939441288,-500.0,0.00027671,2]
[341511960,1730939441297,-7062.9,0.00027671,2]
[341511961,1730939441306,-1352.34,0.00027671,2]
[341511962,1730939441316,-501.6,0.00027671,2]
[341511963,1730939441326,-1336.01,0.00027671,2]
[341511965,1730939441335,-500.0,0.00027671,2]
[341511966,1730939441344,-706.86,0.00027671,2]
[341511967,1730939441355,-500.0,0.00027671,2]
[341511968,1730939441367,-500.0,0.00027671,2]
[341511969,1730939441377,-500.0,0.00027671,2]
[341511970,1730939441386,-500.0,0.00027671,2]
[341511971,1730939441396,-500.0,0.00027671,2]
[341511972,1730939441405,-474.58,0.00027671,2]
[341511973,1730939441414,-500.0,0.00027671,2]
[341511974,1730939441424,-500.0,0.00027671,2]
[341511975,1730939441437,-552.99,0.00027671,2]
[341511976,1730939441446,-500.0,0.00027671,2]
[341511977,1730939441455,-515.14385993,0.00027671,2]
[341511978,1730939441465,-500.0,0.00027671,2]
[341511979,1730939441474,-500.0,0.00027671,2]
[341511980,1730939441483,-500.0,0.00027671,2]
[341511981,1730939441492,-500.0,0.00027671,2]
[341511982,1730939441502,-500.0,0.00027671,2]
[341511983,1730939441511,-500.0,0.00027671,2]
[341511984,1730939441520,-676.2,0.00027671,2]
[341511985,1730939441530,-501.3,0.00027671,2]
[341511986,1730939441539,-500.0,0.00027671,2]
[341511987,1730939441549,-500.0,0.00027671,2]
[341511988,1730939441559,-500.0,0.00027671,2]
[341511989,1730939441569,-500.0,0.00027671,2]
[341511990,1730939441578,-500.0,0.00027671,2]
[341511991,1730939441587,-500.0,0.00027671,2]
[341511992,1730939441597,-500.65,0.00027671,2]
[341511993,1730939441606,-500.0,0.00027671,2]
[341511994,1730939441615,-566.23,0.00027671,2]
[341511995,1730939441625,-500.0,0.00027671,2]
[341511996,1730939441638,-500.0,0.00027671,2]
[341511997,1730939441648,-500.0,0.00027671,2]
[341511998,1730939441657,-160.0,0.00027758,3]
[341511999,1730939441666,-303.4019452,0.00027784,30]
[341512000,1730939441677,-303.4019452,0.00027784,30]
[341512001,1730939441686,-303.4019452,0.00027784,30]
[341512002,1730939441696,-2609.88288707,0.0002785,2]
[341512003,1730939441706,-445.68677844,0.00027944,2]
[341512004,1730939441715,-600.0,0.00027944,2]
[341512005,1730939441724,-500.0,0.00027945,2]
[341512006,1730939441734,-500.0,0.00027945,2]
[341512007,1730939441743,-500.0,0.00027945,2]
[341512008,1730939441752,-500.0,0.00027945,2]
[341512009,1730939441761,-151.0,0.00027945,7]
[341512010,1730939441771,-500.0,0.00027945,2]
[341512011,1730939441780,-151.0,0.00027945,7]
[341512012,1730939441792,-154.407827,0.00027945,7]
[341512013,1730939441805,-500.0,0.00027945,2]
[341512014,1730939441814,-507.42109361,0.00027945,2]
[341512015,1730939441824,-582.03558181,0.00027945,2]
[341512016,1730939441834,-500.0,0.00027945,2]
[341512017,1730939441843,-500.0,0.00027945,2]
[341512018,1730939441853,-500.0,0.00027945,2]
[341512019,1730939441863,-500.0,0.00027945,2]
[341512020,1730939441872,-500.0,0.00027945,2]
[341512021,1730939441882,-500.0,0.00027945,2]
[341512022,1730939441891,-524.47,0.00027945,2]
[341512023,1730939441900,-151.0,0.00027945,7]
[341512024,1730939441910,-500.0,0.00027945,2]
[341512025,1730939441919,-500.0,0.00027945,2]
[341512026,1730939441931,-151.0,0.00027945,7]
[341512027,1730939441940,-2812.1,0.00027945,2]
[341512028,1730939441949,-500.0,0.00027945,2]
[341512029,1730939441959,-601.1829207,0.00027945,2]
[341512030,1730939441968,-1204.95,0.00027945,2]
[341512031,1730939441977,-3486.07,0.00027945,2]
[341512032,1730939441987,-873.85,0.00027945,2]
[341512033,1730939441997,-500.0,0.00027945,2]
[341512034,1730939442007,-151.0,0.00027945,7]
[341512035,1730939442017,-548.47,0.00027945,2]
[341512036,1730939442027,-500.0,0.00027945,2]
[341512037,1730939442036,-671.66,0.00027945,2]
[341512038,1730939442047,-500.0,0.00027945,2]
[341512039,1730939442056,-175.623814,0.00027945,7]
[341512040,1730939442065,-175.623814,0.00027945,7]
[341512041,1730939442074,-500.0,0.00027945,2]
[341512042,1730939442084,-7062.9,0.00027945,2]
[341512043,1730939442096,-1352.34,0.00027945,2]
[341512044,1730939442105,-501.6,0.00027945,2]
[341512045,1730939442116,-1336.01,0.00027945,2]
[341512046,1730939442125,-500.0,0.00027945,2]
[341512047,1730939442136,-706.86,0.00027945,2]
[341512048,1730939442145,-500.0,0.00027945,2]
[341512049,1730939442154,-500.0,0.00027945,2]
[341512050,1730939442163,-500.0,0.00027945,2]
[341512051,1730939442172,-500.0,0.00027945,2]
[341512052,1730939442183,-500.0,0.00027945,2]
[341512053,1730939442192,-151.0,0.00027945,7]
[341512054,1730939442202,-500.0,0.00027945,2]
[341512055,1730939442212,-151.0,0.00027945,7]
[341512056,1730939442221,-233.05547411,0.00027945,2]
[341512057,1730939442230,-151.0,0.00027945,7]
[341512058,1730939442239,-151.0,0.00027945,7]
[341512059,1730939442249,-151.0,0.00027945,7]
[341512060,1730939442259,-151.0,0.00027945,7]
[341512061,1730939442268,-500.0,0.00027945,2]
[341512062,1730939442277,-552.99,0.00027945,2]
[341512063,1730939442287,-500.0,0.00027945,2]
[341512064,1730939442297,-500.0,0.00027945,2]
[341512065,1730939442306,-500.0,0.00027945,2]
[341512066,1730939442315,-676.2,0.00027945,2]
[341512067,1730939442325,-501.3,0.00027945,2]
[341512068,1730939442334,-500.0,0.00027945,2]
[341512069,1730939442343,-500.0,0.00027945,2]
[341512070,1730939442353,-644.0414814,0.00027945,2]
[341512071,1730939442362,-196.26702558,0.00027945,2]
[341512072,1730939442371,-500.65,0.00027945,2]
[341512073,1730939442381,-500.0,0.00027945,2]
[341512074,1730939442489,-566.23,0.00027945,2]
[341512075,1730939442499,-500.0,0.00027945,2]
[341512076,1730939442508,-353.32460246,0.00027945,2]
[341512077,1730939442517,-500.0,0.00027945,2]
[341512078,1730939442526,-529.0,0.00027955,2]
[341512079,1730939442536,-1135.0,0.00027955,2]
[341512080,1730939442546,-2393.0,0.00027955,2]
[341512081,1730939442556,-151.0,0.00027955,7]
[341512082,1730939442565,-505.19522563,0.00027973,5]
[341512083,1730939442574,-260.58,0.00028,14]
[341512084,1730939442586,-151.0,0.00028,7]
[341512085,1730939442598,-151.0,0.00028,7]
[341512086,1730939442607,-175.623814,0.00028,7]
[341512087,1730939442616,-175.623814,0.00028,7]
[341512088,1730939442626,-151.0,0.00028,7]
[341512089,1730939442636,-155.049136,0.00028,7]
[341512090,1730939442645,-151.0,0.00028,7]
[341512091,1730939442654,-403.933,0.00028,30]
[341512092,1730939442665,-264.88370388,0.00028051,2]
[341512093,1730939442687,-160.0,0.00028158,4]
[341512094,1730939442696,-205.571,0.00028187,19]
[341512095,1730939442705,-214.73910235,0.00028218,7]
[341512096,1730939442716,-500.0,0.00028219,2]
[341512097,1730939442725,-370.58946631,0.00028219,2]
[341512098,1730939442735,-500.0,0.00028219,2]
[341512099,1730939442745,-500.0,0.00028219,2]
[341512100,1730939442757,-500.0,0.00028219,2]
[341512101,1730939442766,-500.0,0.00028219,2]
[341512102,1730939442775,-500.0,0.00028219,2]
[341512103,1730939442785,-500.0,0.00028219,2]
[341512104,1730939442797,-500.0,0.00028219,2]
[341512105,1730939442807,-362.91239744,0.00028219,2]
[341512106,1730939442817,-500.0,0.00028219,2]
[341512107,1730939442826,-500.0,0.00028219,2]
[341512108,1730939442836,-423.42912549,0.00028219,2]
[341512109,1730939442846,-151.0,0.00028219,7]
[341512110,1730939442856,-151.0,0.00028219,7]
[341512112,1730939442866,-2812.1,0.00028219,2]
[341512114,1730939442875,-315.87660318,0.00028219,2]
[341512116,1730939442884,-1204.95,0.00028219,2]
[341512117,1730939442893,-3486.07,0.00028219,2]
[341512118,1730939442902,-873.85,0.00028219,2]
[341512119,1730939442911,-500.0,0.00028219,2]
[341512120,1730939442920,-151.0,0.00028219,7]
[341512121,1730939442932,-548.47,0.00028219,2]
[341512122,1730939442941,-500.0,0.00028219,2]
[341512123,1730939442950,-671.66,0.00028219,2]
[341512124,1730939442959,-500.0,0.00028219,2]
[341512125,1730939442968,-175.623814,0.00028219,7]
[341512126,1730939442977,-175.623814,0.00028219,7]
[341512127,1730939442986,-500.0,0.00028219,2]
[341512128,1730939442996,-7062.9,0.00028219,2]
[341512129,1730939443006,-1352.34,0.00028219,2]
[341512130,1730939443017,-501.6,0.00028219,2]
[341512131,1730939443028,-1336.01,0.00028219,2]
[341512132,1730939443036,-196.06923042,0.00028219,2]
[341512133,1730939443047,-706.86,0.00028219,2]
[341512134,1730939443057,-500.0,0.00028219,2]
[341512135,1730939443067,-500.0,0.00028219,2]
[341512136,1730939443076,-500.0,0.00028219,2]
[341512137,1730939443085,-500.0,0.00028219,2]
[341512138,1730939443095,-638.6538105,0.00028219,2]
[341512139,1730939443105,-500.0,0.00028219,2]
[341512141,1730939443114,-151.0,0.00028219,7]
[341512142,1730939443125,-151.0,0.00028219,7]
[341512143,1730939443135,-500.0,0.00028219,2]
[341512144,1730939443145,-552.99,0.00028219,2]
[341512146,1730939443154,-500.0,0.00028219,2]
[341512147,1730939443163,-500.0,0.00028219,2]
[341512148,1730939443174,-500.0,0.00028219,2]
[341512149,1730939443185,-676.2,0.00028219,2]
[341512150,1730939443195,-501.3,0.00028219,2]
[341512151,1730939443204,-500.0,0.00028219,2]
[341512153,1730939443213,-500.0,0.00028219,2]
[341512155,1730939443222,-500.65,0.00028219,2]
[341512156,1730939443232,-473.88296568,0.00028219,2]
[341512158,1730939443242,-566.23,0.00028219,2]
[341512160,1730939443251,-500.0,0.00028219,2]
[341512161,1730939443260,-500.0,0.00028219,2]
[341512162,1730939443269,-508.0046926,0.00028306,5]
[341512163,1730939443278,-470.23847072,0.00028351,2]
[341512164,1730939443287,-500.0,0.00028493,2]
[341512165,1730939443297,-500.0,0.00028493,2]
[341512166,1730939443306,-500.0,0.00028493,2]
[341512167,1730939443315,-500.0,0.00028493,2]
[341512168,1730939443324,-500.0,0.00028493,2]
[341512169,1730939443333,-500.0,0.00028493,2]
[341512170,1730939443342,-500.0,0.00028493,2]
[341512171,1730939443351,-500.0,0.00028493,2]
[341512172,1730939443360,-500.0,0.00028493,2]
[341512174,1730939443369,-500.0,0.00028493,2]
[341512175,1730939443379,-2812.1,0.00028493,2]
[341512176,1730939443388,-1204.95,0.00028493,2]
[341512177,1730939443397,-3486.07,0.00028493,2]
[341512178,1730939443406,-873.85,0.00028493,2]
[341512179,1730939443415,-500.0,0.00028493,2]
[341512180,1730939443424,-548.47,0.00028493,2]
[341512181,1730939443438,-500.0,0.00028493,2]
[341512182,1730939443447,-671.66,0.00028493,2]
[341512183,1730939443456,-500.0,0.00028493,2]
[341512184,1730939443466,-500.0,0.00028493,2]
[341512185,1730939443475,-7062.9,0.00028493,2]
[341512187,1730939443485,-1352.34,0.00028493,2]
[341512188,1730939443494,-501.6,0.00028493,2]
[341512189,1730939443504,-1336.01,0.00028493,2]
[341512190,1730939443514,-706.86,0.00028493,2]
[341512191,1730939443524,-500.0,0.00028493,2]
[341512192,1730939443533,-500.0,0.00028493,2]
[341512193,1730939443543,-500.0,0.00028493,2]
[341512194,1730939443553,-500.0,0.00028493,2]
[341512195,1730939443562,-500.0,0.00028493,2]
[341512196,1730939443571,-552.99,0.00028493,2]